bitfinex/quotes_SOLUSD_20250718
["timestamp","ask_amount","ask_price","bid_price","bid_amount"]
[1752800384401,0.03,179.92,179.91,1.81281349]
[1752800384914,0.03,179.92,179.89,0.68]
[1752800385106,0.03,179.92,179.9,1.81338122]
[1752800385304,0.03,179.92,179.91,1.81335712]
[1752800388193,0.03,179.92,179.9,1.81335712]
[1752800388399,0.03,179.92,179.91,1.81335712]
[1752800389697,0.03,179.92,179.91,2.49335712]
[1752800390417,0.03,179.92,179.91,33.07335712]
[1752800391520,0.03,179.92,179.91,33.07042088]
[1752800392710,0.03,179.92,179.91,32.39042088]
[1752800394016,0.03,179.92,179.91,33.07059563]
[1752800396009,11.1648653,179.95,179.91,33.07059563]
[1752800396315,11.8648653,179.95,179.92,1.81059563]
[1752800396508,5.78714974,179.95,179.91,31.26]
[1752800396704,0.7,179.94,179.92,1.81094834]
[1752800396889,12.33517971,179.94,179.91,30.58]
[1752800397095,6.25746415,179.94,179.92,1.81113671]
[1752800397301,6.77771556,179.94,179.92,1.81113671]
[1752800397595,6.07771556,179.94,179.91,30.58]
[1752800397796,6.07771556,179.94,179.91,31.26]
[1752800398099,6.07771556,179.93,179.91,30.58]
[1752800398304,6.77771556,179.93,179.91,30.58]
[1752800399117,12.33545879,179.93,179.91,30.58]
[1752800399813,11.63545879,179.93,179.91,30.58]
[1752800400122,11.63545879,179.93,179.89,30.56]
[1752800400123,6.74771556,179.92,179.89,30.56]
[1752800400904,11.63518708,179.94,179.9,0.68]
[1752800401116,13.89155333,179.97,179.9,0.68]
[1752800401117,9.18849291,179.99,179.91,30.56]
[1752800401319,6.07771556,179.95,179.92,0.68]
[1752800401518,5.5561729,179.98,179.93,37.31771556]
[1752800401723,12.30388846,179.98,179.94,0.68]
[1752800402017,134.93630155,180.0,179.93,30.56]
[1752800402224,6.07771556,179.96,179.93,31.24]
[1752800402396,143.91009106,180.0,179.93,30.56]
[1752800402594,6.07771556,179.95,179.93,30.56]
[1752800402999,157.79897994,180.0,179.9,0.68]
[1752800403000,12.30512358,179.94,179.9,0.68]
[1752800403223,6.07771556,179.92,179.87,0.74]
[1752800403412,0.7,179.93,179.88,30.54]
[1752800403616,6.07771556,179.92,179.88,30.54]
[1752800403801,6.74771556,179.91,179.88,30.54]
[1752800404003,6.07771556,179.89,179.87,0.06]
[1752800404216,6.74771556,179.88,179.87,0.06]
[1752800405213,12.30697729,179.88,179.87,0.06]
[1752800406625,6.22926173,179.88,179.87,0.06]
[1752800406809,13.89567729,179.88,179.87,0.06]
[1752800407631,26.0,179.85,179.83,0.06]
[1752800407824,26.0,179.85,179.79,0.06]
[1752800407825,36.61771556,179.84,179.79,0.06]
[1752800408029,6.07771556,179.8,179.79,0.06]
[1752800408405,6.74771556,179.8,179.79,0.06]
[1752800408829,0.67,179.8,179.79,0.06]
[1752800409137,6.74771556,179.82,179.79,0.06]
[1752800409310,5.56142594,179.81,179.79,0.06]
[1752800409509,12.3091415,179.81,179.79,0.06]
[1752800409728,6.23115131,179.82,179.79,0.06]
[1752800409905,26.0,179.84,179.79,0.06]
[1752800409906,32.74771556,179.84,179.79,0.74]
[1752800410237,6.07771556,179.83,179.79,0.74]
[1752800410431,6.74771556,179.83,179.79,0.74]
[1752800410735,0.67,179.82,179.79,0.06]
[1752800411236,0.67,179.81,179.79,0.06]
[1752800412325,12.3085702,179.83,179.79,0.06]
[1752800412529,6.07771556,179.82,179.79,0.06]
[1752800412834,0.67,179.81,179.79,0.06]
[1752800413128,12.30928193,179.81,179.79,0.06]
[1752800413705,0.67,179.81,179.79,0.06]
[1752800414511,11.6388851,179.82,179.79,0.06]
[1752800414832,11.63860372,179.83,179.79,0.06]
[1752800415021,12.30860372,179.83,179.79,0.74]
[1752800415419,11.63860372,179.83,179.79,0.74]
[1752800415618,12.30821261,179.85,179.8,0.68]
[1752800416135,0.67,179.85,179.81,0.68]
[1752800416326,0.67,179.87,179.82,0.68]
[1752800416518,0.67,179.87,179.83,0.68]
[1752800416712,6.07771556,179.87,179.83,0.68]
[1752800416912,6.74771556,179.86,179.81,16.78468397]
[1752800417114,6.74771556,179.86,179.81,17.46468397]
[1752800417531,6.74771556,179.86,179.82,0.68]
[1752800417732,6.07771556,179.86,179.82,0.68]
[1752800417931,6.07771556,179.87,179.83,0.68]
[1752800418131,6.07771556,179.87,179.84,0.68]
[1752800418646,31.55931016,179.88,179.85,0.68]
[1752800418941,11.63702572,179.88,179.85,0.68]
[1752800419662,12.30702572,179.88,179.83,0.68]
[1752800419951,6.07771556,179.87,179.83,0.68]
[1752800420246,6.74771556,179.87,179.83,0.68]
[1752800420443,6.74771556,179.87,179.81,28.423816]
[1752800420444,6.74771556,179.87,179.81,29.103816]
[1752800420622,0.67,179.87,179.82,6.07771556]
[1752800420828,11.63759546,179.86,179.81,22.86239953]
[1752800421170,6.74771556,179.85,179.8,31.2]
[1752800421445,6.74771556,179.85,179.79,11.69970063]
[1752800421446,6.07771556,179.83,179.79,0.06]
[1752800421624,6.74771556,179.84,179.79,0.06]
[1752800421961,0.67,179.83,179.79,0.74]
[1752800422130,0.67,179.83,179.79,6.81771556]
[1752800422335,6.07771556,179.84,179.79,0.74]
[1752800422523,6.74771556,179.84,179.8,0.68]
[1752800423234,12.3082716,179.84,179.8,0.68]
[1752800423847,32.23016875,179.86,179.81,0.68]
[1752800424029,31.56016875,179.86,179.82,0.68]
[1752800424543,38.30788431,179.86,179.82,0.68]
[1752800424743,38.30788431,179.86,179.8,22.86239953]
[1752800424744,0.67,179.85,179.8,16.84468397]
[1752800424925,0.67,179.84,179.8,53.42239953]
[1752800425133,0.67,179.84,179.8,47.34468397]
[1752800425430,0.67,179.83,179.8,30.56]
[1752800425629,0.67,179.83,179.8,0.06]
[1752800426226,6.07771556,179.84,179.8,0.06]
[1752800426426,11.63795853,179.85,179.81,0.68]
[1752800426829,11.63795853,179.85,179.81,6.07771556]
[1752800426830,5.56024297,179.85,179.81,6.07771556]
[1752800427036,31.55993049,179.86,179.82,6.75771556]
[1752800427227,0.67,179.85,179.8,12.37940424]
[1752800427448,0.67,179.85,179.81,0.68]
[1752800427628,0.67,179.84,179.8,0.06]
[1752800427830,0.67,179.84,179.8,0.74]
[1752800428151,6.07771556,179.81,179.75,17.14468397]
[1752800428451,0.67,179.8,179.76,1.49504116]
[1752800428681,6.07771556,179.79,179.75,30.5]
[1752800428853,0.67,179.79,179.76,1.49583999]
[1752800429034,6.74771556,179.83,179.78,6.07771556]
[1752800429228,0.67,179.83,179.78,6.07771556]
[1752800429445,0.7,179.83,179.77,6.07771556]
[1752800429633,6.77771556,179.83,179.78,1.4951774]
[1752800429832,5.56049822,179.84,179.76,16.78468397]
[1752800429833,6.07771556,179.81,179.76,16.78468397]
[1752800430054,0.7,179.81,179.77,1.49556839]
[1752800430740,0.7,179.81,179.77,0.99556839]
[1752800431049,6.26160315,179.81,179.76,22.86239953]
[1752800431248,6.26160315,179.81,179.76,23.56239953]
[1752800431630,6.26160315,179.81,179.77,6.07771556]
[1752800432031,0.7,179.8,179.76,23.56239953]
[1752800432247,0.7,179.8,179.75,30.5]
[1752800432248,6.07771556,179.79,179.75,30.5]
[1752800432434,0.7,179.78,179.75,30.5]
[1752800433348,6.26239481,179.78,179.75,30.5]
[1752800433753,5.56203823,179.8,179.75,30.5]
[1752800433953,6.26203823,179.8,179.75,37.27771556]
[1752800434153,5.56080742,179.83,179.78,6.07771556]
[1752800434450,12.33852298,179.83,179.79,0.7]
[1752800434650,6.26080742,179.83,179.77,6.77771556]
[1752800434853,6.26080742,179.83,179.78,6.07771556]
[1752800435150,6.26080742,179.83,179.79,0.7]
[1752800435354,12.33852298,179.83,179.77,6.77771556]
[1752800435551,12.33852298,179.83,179.76,17.48468397]
[1752800435744,12.33852298,179.83,179.77,6.07771556]
[1752800435945,5.5598799,179.86,179.78,16.78468397]
[1752800436180,6.07771556,179.84,179.79,31.2]
[1752800436350,6.07771556,179.84,179.79,30.5]
[1752800436351,0.7,179.83,179.79,30.5]
[1752800436559,0.7,179.82,179.78,16.78468397]
[1752800436757,0.7,179.82,179.78,47.98468397]
[1752800437443,6.07771556,179.83,179.78,47.98468397]
[1752800437645,6.77771556,179.83,179.78,47.98468397]
[1752800438044,12.33883549,179.82,179.75,0.7]
[1752800438245,6.07771556,179.81,179.76,30.5]
[1752800438556,0.7,179.81,179.76,30.5]
[1752800438732,0.7,179.81,179.76,37.27771556]
[1752800438926,11.63883549,179.82,179.76,37.27771556]
[1752800438927,11.63883549,179.82,179.76,36.57771556]
[1752800439129,5.56111993,179.82,179.77,6.77771556]
[1752800439358,5.56111993,179.82,179.78,0.7]
[1752800439540,12.33883549,179.82,179.77,6.07771556]
[1752800440059,0.7,179.81,179.77,6.07771556]
[1752800440243,0.7,179.81,179.76,37.27771556]
[1752800440754,11.6388712,179.82,179.77,6.77771556]
[1752800440939,6.77771556,179.83,179.78,6.77771556]
[1752800441257,6.77771556,179.83,179.78,0.7]
[1752800441258,0.7,179.82,179.78,0.7]
[1752800442145,5.56088995,179.83,179.79,0.7]
[1752800442851,0.7,179.82,179.76,36.06292819]
[1752800443055,0.7,179.82,179.77,24.30967995]
[1752800443253,6.77771556,179.82,179.78,1.44815542]
[1752800443556,0.7,179.81,179.78,1.44815542]
[1752800443938,6.77771556,179.83,179.78,1.44815542]
[1752800444155,0.7,179.82,179.78,1.44815542]
[1752800444853,6.77771556,179.81,179.78,1.44815542]
[1752800445262,0.7,179.8,179.78,1.44815542]
[1752800446868,0.7,179.79,179.78,1.44815542]
[1752800448469,12.33976998,179.79,179.77,30.48]
[1752800448656,6.07771556,179.8,179.77,30.48]
[1752800448956,6.29150034,179.81,179.77,30.48]
[1752800449133,6.07771556,179.8,179.77,30.48]
[1752800449339,6.29150034,179.81,179.77,30.48]
[1752800449555,6.07771556,179.8,179.77,30.48]
[1752800449755,0.7,179.79,179.77,30.48]
[1752800449955,6.77771556,179.79,179.77,30.48]
[1752800450263,5.59150034,179.81,179.77,30.48]
[1752800450443,6.77771556,179.8,179.77,30.48]
[1752800450754,6.77771556,179.79,179.77,30.48]
[1752800450956,6.07771556,179.8,179.77,30.48]
[1752800451146,6.77771556,179.8,179.77,30.48]
[1752800451661,0.7,179.8,179.77,30.48]
[1752800451846,6.77771556,179.8,179.77,30.48]
[1752800452049,0.03,179.81,179.78,5.0]
[1752800452276,5.59146989,179.81,179.78,5.0]
[1752800453046,6.29146989,179.81,179.78,5.0]
[1752800453269,0.03,179.81,179.78,5.0]
[1752800453442,0.03,179.81,179.78,5.7]
[1752800454069,0.03,179.81,179.78,5.0]
[1752800454246,0.7,179.8,179.78,5.0]
[1752800454842,5.56176475,179.8,179.78,5.0]
[1752800455051,0.7,179.79,179.78,5.0]
[1752800455560,11.63948031,179.8,179.78,5.0]
[1752800455561,0.03,179.81,179.78,17.3400329]
[1752800455749,0.03,179.81,179.79,6.77771556]
[1752800455953,0.03,179.81,179.79,37.23771556]
[1752800456150,0.03,179.81,179.79,31.16]
[1752800456467,0.03,179.81,179.79,30.46]
[1752800456870,0.03,179.81,179.79,31.16]
[1752800457063,0.03,179.81,179.79,37.23771556]
[1752800457577,0.03,179.81,179.79,31.16]
[1752800457951,0.03,179.81,179.79,36.72195704]
[1752800458851,0.03,179.81,179.79,31.16]
[1752800459161,0.03,179.81,179.79,36.72194236]
[1752800459351,0.03,179.81,179.8,6.73771556]
[1752800459669,0.03,179.81,179.8,0.66]
[1752800459876,0.03,179.81,179.8,6.73771556]
[1752800460060,0.03,179.81,179.8,0.66]
[1752800460260,0.03,179.81,179.8,6.07771556]
[1752800460574,0.03,179.81,179.8,30.46]
[1752800461089,0.74,179.81,179.78,5.0]
[1752800461256,0.71,179.8,179.78,5.0]
[1752800461648,0.71,179.79,179.78,5.0]
[1752800461883,0.74,179.81,179.78,5.0]
[1752800462183,0.71,179.8,179.78,5.0]
[1752800464063,6.78771556,179.79,179.78,5.0]
[1752800464374,0.71,179.79,179.78,5.0]
[1752800465477,5.56181616,179.8,179.78,5.0]
[1752800465776,0.71,179.79,179.78,5.0]
[1752800467158,6.2720446,179.79,179.78,5.0]
[1752800467377,12.34976016,179.79,179.78,5.0]
[1752800467881,0.71,179.79,179.78,5.0]
[1752800468083,6.2720446,179.79,179.78,5.0]
[1752800468380,0.71,179.79,179.78,5.0]
[1752800468872,6.2720446,179.79,179.78,5.0]
[1752800469078,12.34976016,179.79,179.78,5.0]
[1752800470760,6.2720446,179.79,179.78,5.0]
[1752800471081,12.34976016,179.79,179.78,5.0]
[1752800471255,6.2720446,179.79,179.78,5.0]
[1752800471462,5.59168321,179.81,179.78,5.0]
[1752800471660,12.37939877,179.81,179.78,5.0]
[1752800472385,6.27185825,179.8,179.78,5.0]
[1752800473179,6.78771556,179.79,179.78,5.0]
[1752800474460,12.34976016,179.79,179.78,5.0]
[1752800476453,38.34976016,179.79,179.78,5.0]
[1752800476660,38.34976016,179.79,179.75,0.06]
[1752800476661,26.0,179.76,179.75,1e-08]
[1752800476856,32.07771556,179.76,179.73,0.06]
[1752800477083,6.07771556,179.74,179.73,0.06]
[1752800477470,6.78771556,179.74,179.73,0.06]
[1752800478175,11.18744405,179.74,179.73,0.06]
[1752800478373,38.35130741,179.74,179.73,0.06]
[1752800478890,42.76085374,179.74,179.73,0.06]
[1752800479462,6.07771556,179.7,179.69,0.2]
[1752800479981,6.78771556,179.7,179.69,0.2]
[1752800480171,6.07771556,179.7,179.69,0.2]
[1752800480479,5.56432995,179.72,179.69,0.2]
[1752800480668,6.07771556,179.7,179.69,0.2]
[1752800481372,5.56398891,179.73,179.69,0.86]
[1752800481569,11.64170447,179.73,179.7,0.66]
[1752800481771,6.07771556,179.71,179.69,0.2]
[1752800481973,6.07771556,179.7,179.69,0.2]
[1752800482179,6.78771556,179.7,179.69,0.2]
[1752800482377,12.35254583,179.7,179.69,0.2]
[1752800484083,6.07771556,179.71,179.69,0.2]
[1752800484468,12.35254583,179.7,179.69,0.2]
[1752800485183,11.64254583,179.7,179.69,0.2]
[1752800485391,12.35254583,179.7,179.69,0.2]
[1752800485572,11.64254583,179.7,179.69,0.2]
[1752800485779,12.35254583,179.7,179.69,0.2]
[1752800487975,48.85026139,179.7,179.67,0.06]
[1752800488289,32.07771556,179.68,179.67,1e-08]
[1752800488478,26.0,179.66,179.65,0.2]
[1752800488676,62.49771556,179.66,179.65,0.2]
[1752800488886,63.20771556,179.66,179.65,0.2]
[1752800490298,26.0,179.66,179.65,0.2]
[1752800490495,38.3037848,179.66,179.65,0.2]
[1752800490885,82.6189579,179.66,179.61,0.2]
[1752800491193,6.07771556,179.62,179.61,0.2]
[1752800491587,6.73771556,179.62,179.61,0.2]
[1752800492491,26.0,179.6,179.59,0.2]
[1752800492692,32.07771556,179.6,179.59,0.2]
[1752800492897,69.21543112,179.6,179.59,0.2]
[1752800493910,87.55011509,179.6,179.59,1e-08]
[1752800494700,93.11804382,179.6,179.59,1e-08]
[1752800495203,6.1485,179.59,179.57,1e-08]
[1752800495388,36.47771556,179.58,179.57,1e-08]
[1752800495701,37.13771556,179.58,179.57,1e-08]
[1752800496381,53.92239953,179.58,179.57,1e-08]
[1752800496584,53.4132328,179.58,179.57,1e-08]
[1752800496784,59.49094836,179.58,179.57,1e-08]
[1752800496983,42.78468397,179.56,179.55,1e-08]
[1752800497200,79.26239953,179.56,179.55,1e-08]
[1752800497400,79.92239953,179.56,179.45,2.1557]
[1752800497592,6.07771556,179.48,179.43,0.65]
[1752800497794,32.07771556,179.45,179.41,0.65]
[1752800498006,0.66,179.5,179.42,6.72771556]
[1752800498306,36.47771556,179.5,179.44,6.07771556]
[1752800498496,26.0,179.52,179.45,0.65]
[1752800498714,31.5704552,179.52,179.48,6.07771556]
[1752800499004,6.07771556,179.49,179.45,0.65]
[1752800499204,6.07771556,179.47,179.42,0.65]
[1752800499407,26.0,179.48,179.43,0.65]
[1752800499618,6.07771556,179.45,179.43,0.65]
[1752800499815,6.07771556,179.46,179.43,0.65]
[1752800500402,6.07771556,179.46,179.41,0.65]
[1752800500595,5.57258289,179.45,179.42,0.65]
[1752800500784,11.65003912,179.46,179.42,0.65]
[1752800500980,11.65003912,179.46,179.43,0.65]
[1752800501213,31.57198376,179.47,179.44,0.65]
[1752800501507,26.0,179.48,179.45,0.65]
[1752800501692,6.07771556,179.47,179.41,6.07771556]
[1752800501882,6.07771556,179.45,179.41,0.65]
[1752800502086,6.73771556,179.45,179.4,1.5875]
[1752800502308,6.07771556,179.41,179.37,0.65]
[1752800502604,6.07771556,179.43,179.37,12.30274949]
[1752800502806,30.42,179.47,179.4,6.07771556]
[1752800503014,6.07771556,179.46,179.41,0.65]
[1752800503308,6.07771556,179.45,179.42,0.65]
[1752800503510,32.07771556,179.47,179.43,0.65]
[1752800503761,32.07771556,179.47,179.44,0.65]
[1752800504013,6.07771556,179.46,179.41,6.72771556]
[1752800504201,6.73771556,179.46,179.41,6.72771556]
[1752800504394,6.73771556,179.46,179.41,6.22364479]
[1752800504995,0.66,179.45,179.41,0.65]
[1752800505220,0.66,179.45,179.41,6.22372183]
[1752800505388,26.0,179.47,179.42,0.65]
[1752800505595,36.49771556,179.49,179.43,6.07771556]
[1752800505794,62.49771556,179.49,179.44,0.65]
[1752800506004,6.73771556,179.5,179.45,0.65]
[1752800506204,15.48132175,179.52,179.47,6.07771556]
[1752800506205,15.9885933,179.52,179.47,6.07771556]
[1752800506514,15.9885933,179.52,179.48,0.65]
[1752800506908,16.6485933,179.52,179.46,6.72771556]
[1752800507214,10.57087774,179.52,179.46,0.65]
[1752800507413,6.07771556,179.51,179.46,6.72771556]
[1752800507619,6.07771556,179.49,179.44,0.65]
[1752800507819,6.73771556,179.49,179.44,0.65]
[1752800508006,0.66,179.48,179.44,0.65]
[1752800508203,6.73771556,179.48,179.43,5.57320403]
[1752800508523,0.66,179.48,179.43,0.65]
[1752800508724,6.73771556,179.48,179.43,0.65]
[1752800509405,0.66,179.48,179.43,0.65]
[1752800509724,6.07771556,179.46,179.42,1.5513]
[1752800509900,6.73771556,179.46,179.42,1.5513]
[1752800510427,0.66,179.45,179.4,12.86551556]
[1752800510728,0.66,179.45,179.4,12.21551556]
[1752800511019,5.57248423,179.46,179.41,0.65]
[1752800511218,32.07771556,179.48,179.42,6.72771556]
[1752800511433,6.07771556,179.46,179.4,12.86551556]
[1752800512116,6.07771556,179.46,179.43,0.06]
[1752800512829,11.65019365,179.46,179.43,0.06]
[1752800513511,12.31019365,179.46,179.43,0.06]
[1752800514225,6.73771556,179.45,179.43,0.06]
[1752800514618,5.57247809,179.46,179.43,0.06]
[1752800514619,6.73771556,179.44,179.43,0.06]
[1752800514917,12.310609,179.44,179.43,0.06]
[1752800516409,11.650609,179.44,179.43,0.06]
[1752800516617,42.050609,179.44,179.43,0.06]
[1752800516926,11.650609,179.44,179.43,0.06]
[1752800517112,12.310609,179.44,179.43,0.06]
[1752800517626,6.73771556,179.5,179.43,6.78771556]
[1752800517810,5.57103772,179.5,179.45,6.07771556]
[1752800518015,5.57103772,179.5,179.43,0.06]
[1752800518016,5.57103772,179.5,179.46,6.72771556]
[1752800518204,15.48158709,179.52,179.47,0.65]
[1752800518406,9.91087774,179.52,179.48,6.72771556]
[1752800518629,9.91087774,179.52,179.5,6.07771556]
[1752800518805,5.56961667,179.55,179.5,6.72771556]
[1752800519119,26.0,179.54,179.5,0.65]
[1752800519322,5.56961667,179.55,179.48,0.68]
[1752800519509,6.07771556,179.51,179.46,6.6574]
[1752800519833,6.07771556,179.49,179.43,36.53771556]
[1752800520134,0.69,179.5,179.43,6.13771556]
[1752800520310,6.07771556,179.49,179.43,6.13771556]
[1752800520822,11.64909184,179.49,179.43,6.13771556]
[1752800521025,11.64909184,179.49,179.43,0.06]
[1752800521228,11.64909184,179.49,179.43,6.13771556]
[1752800521627,6.07771556,179.44,179.43,0.06]
[1752800522135,6.76771556,179.44,179.43,0.06]
[1752800522436,0.69,179.44,179.43,0.06]
[1752800522812,38.34012295,179.46,179.43,0.06]
[1752800523009,31.09,179.49,179.43,0.74]
[1752800523212,6.76771556,179.51,179.45,6.07771556]
[1752800523513,11.64826398,179.52,179.46,6.75771556]
[1752800523817,6.07771556,179.51,179.46,0.68]
[1752800524018,6.26054842,179.52,179.44,6.75771556]
[1752800524227,0.69,179.51,179.44,6.75771556]
[1752800524431,12.33851556,179.51,179.45,6.07771556]
[1752800524626,31.57032678,179.53,179.46,6.75771556]
[1752800524839,6.76771556,179.54,179.48,6.07771556]
[1752800525043,36.43852468,179.54,179.48,9.74852468]
[1752800525336,9.74852468,179.53,179.47,10.42852468]
[1752800525517,9.74852468,179.51,179.46,0.68]
[1752800526020,0.69,179.51,179.46,10.42852468]
[1752800526250,9.74852468,179.53,179.48,9.74852468]
[1752800526419,26.0,179.54,179.49,10.42852468]
[1752800526616,26.0,179.54,179.5,0.68]
[1752800527638,10.43852468,179.56,179.51,0.68]
[1752800527829,0.69,179.56,179.51,0.68]
[1752800528030,9.74852468,179.54,179.47,0.68]
[1752800528234,9.74852468,179.54,179.48,9.74852468]
[1752800528419,10.43852468,179.54,179.48,9.74852468]
[1752800528616,10.43852468,179.54,179.46,42.29962043]
[1752800528617,9.74852468,179.52,179.46,16.09612468]
[1752800529023,26.0,179.53,179.47,0.68]
[1752800529241,26.0,179.53,179.49,9.74852468]
[1752800529539,15.31835905,179.54,179.49,0.68]
[1752800529716,5.56953818,179.55,179.49,0.68]
[1752800529916,5.56953818,179.55,179.49,10.42852468]
[1752800530336,42.00776429,179.56,179.5,10.42852468]
[1752800530544,26.69,179.56,179.51,9.74852468]
[1752800530723,42.00782441,179.56,179.51,0.68]
[1752800530924,9.74852468,179.55,179.51,0.68]
[1752800531245,26.0,179.56,179.52,0.68]
[1752800531425,6.25860982,179.58,179.53,10.42852468]
[1752800531748,10.43852468,179.57,179.51,9.74852468]
[1752800531930,10.51637768,179.57,179.51,9.82637768]
[1752800532136,10.51637768,179.57,179.5,31.06]
[1752800532137,5.56860982,179.58,179.52,9.82637768]
[1752800532329,5.56860982,179.58,179.52,0.68]
[1752800532532,9.82637768,179.57,179.52,16.07667876]
[1752800532734,35.82637768,179.57,179.52,16.07667876]
[1752800532928,0.69,179.59,179.53,9.82637768]
[1752800533259,15.1106208,179.6,179.54,9.82637768]
[1752800533541,50.93699848,179.6,179.55,9.82637768]
[1752800533736,9.54264352,179.6,179.55,9.82637768]
[1752800533938,0.03,179.62,179.58,9.82637768]
[1752800534147,0.03,179.62,179.59,10.50637768]
[1752800534525,0.03,179.62,179.59,6.24823817]
[1752800534831,0.03,179.62,179.56,30.38]
[1752800535035,26.72,179.62,179.57,30.38]
[1752800535541,26.72,179.62,179.57,31.06]
[1752800535728,26.72,179.62,179.57,40.88637768]
[1752800535929,0.03,179.62,179.57,40.20637768]
[1752800536131,0.03,179.62,179.58,0.68]
[1752800536330,0.03,179.62,179.59,9.82637768]
[1752800536548,0.03,179.62,179.59,10.50637768]
[1752800536726,0.03,179.62,179.61,9.82637768]
[1752800536939,0.03,179.62,179.61,52.61106165]
[1752800537138,0.03,179.62,179.61,26.68]
[1752800537323,0.03,179.62,179.61,26.0]
[1752800537937,0.03,179.62,179.61,10.50637768]
[1752800538350,0.03,179.62,179.59,26.0]
[1752800538551,0.03,179.62,179.61,9.82637768]
[1752800538953,0.03,179.62,179.61,10.50637768]
[1752800539244,0.03,179.62,179.61,36.50637768]
[1752800539543,0.03,179.62,179.61,26.0]
[1752800539746,0.03,179.62,179.61,30.38]
[1752800540059,10.54637768,179.62,179.61,30.38]
[1752800540470,10.54637768,179.62,179.57,30.38]
[1752800540960,9.82637768,179.6,179.57,30.36]
[1752800541292,9.82637768,179.58,179.51,6.1027]
[1752800541454,9.82637768,179.55,179.5,0.68]
[1752800541636,9.82637768,179.54,179.5,31.06]
[1752800541841,9.82637768,179.54,179.5,30.38]
[1752800541842,9.82637768,179.53,179.5,30.38]
[1752800542541,9.82637768,179.51,179.5,30.38]
[1752800542745,9.82637768,179.51,179.45,40.13890935]
[1752800542965,9.82637768,179.51,179.46,30.4]
[1752800543139,9.82637768,179.5,179.46,30.4]
[1752800543472,10.51637768,179.52,179.47,0.68]
[1752800543639,9.82637768,179.51,179.47,0.68]
[1752800543846,10.51637768,179.52,179.47,0.68]
[1752800544061,0.69,179.52,179.47,6.25195288]
[1752800544266,0.69,179.54,179.47,15.39833056]
[1752800544468,9.82637768,179.53,179.48,0.68]
[1752800544674,9.82637768,179.52,179.48,0.68]
[1752800544854,9.82637768,179.52,179.46,46.47860519]
[1752800544855,9.82637768,179.51,179.46,46.47860519]
[1752800545166,9.82637768,179.51,179.47,0.68]
[1752800545373,0.69,179.52,179.47,0.68]
[1752800545374,10.51637768,179.52,179.47,0.68]
[1752800545547,10.51637768,179.51,179.46,35.97222751]
[1752800545740,31.56953155,179.55,179.47,0.68]
[1752800545741,0.69,179.54,179.47,0.68]
[1752800545941,10.51637768,179.54,179.49,9.82637768]
[1752800546564,6.5929,179.58,179.5,9.82637768]
[1752800546767,26.0,179.55,179.5,40.90637768]
[1752800547262,26.0,179.55,179.51,10.50637768]
[1752800547572,26.0,179.55,179.52,0.68]
[1752800547773,0.69,179.57,179.52,10.50637768]
[1752800547955,0.69,179.57,179.53,9.82637768]
[1752800548153,41.39465894,179.59,179.53,9.82637768]
[1752800548356,0.69,179.59,179.54,40.22637768]
[1752800548553,0.69,179.61,179.56,9.82637768]
[1752800548818,5.59756997,179.62,179.57,9.82637768]
[1752800548819,0.03,179.62,179.57,9.82637768]
[1752800548960,0.03,179.62,179.57,0.68]
[1752800549165,0.03,179.62,179.61,9.82637768]
[1752800549469,0.03,179.62,179.58,31.08]
[1752800549675,0.03,179.62,179.61,9.82637768]
[1752800550679,10.53637768,179.62,179.55,16.78468397]
[1752800550882,10.53637768,179.62,179.54,30.46]
[1752800550883,9.82637768,179.58,179.54,30.46]
[1752800551175,0.68,179.58,179.54,36.02978881]